bitfinex/quotes_SOLUSD_20241116
["timestamp","ask_amount","ask_price","bid_price","bid_amount"]
[1731793661051,0.12549,216.84,216.83,14.02349979]
[1731793662957,0.12549,216.84,216.81,14.02349979]
[1731793663176,23.776884,216.83,216.79,4.48980968]
[1731793663375,0.12549,216.82,216.75,14.02349979]
[1731793663681,14.14898979,216.82,216.75,14.02349979]
[1731793663872,14.14898979,216.82,216.72,4.48980968]
[1731793663873,23.776884,216.81,216.74,14.02349979]
[1731793664180,0.12549,216.8,216.74,14.02349979]
[1731793664478,0.12549,216.78,216.74,14.02349979]
[1731793664777,0.12549,216.78,216.75,14.02349979]
[1731793665453,0.12549,216.8,216.75,14.02349979]
[1731793665657,11.5275,216.88,216.79,14.02349979]
[1731793665864,25.55099979,216.88,216.79,14.02349979]
[1731793666472,14.02349979,216.86,216.79,14.02349979]
[1731793666885,22.44597867,216.86,216.79,22.44597867]
[1731793667059,0.12549,216.85,216.79,22.44597867]
[1731793668467,0.12549,216.83,216.79,22.44597867]
[1731793669580,4.73749,216.83,216.79,22.44597867]
[1731793670175,4.6115,216.85,216.82,22.44597867]
[1731793670386,0.09367462,216.91,216.84,22.44597867]
[1731793670387,4.6104,216.9,216.84,22.44597867]
[1731793671760,0.09367462,216.91,216.87,22.44597867]
[1731793672176,4.70387462,216.91,216.85,22.44597867]
[1731793672483,4.70387462,216.91,216.81,15.8341]
[1731793672484,27.14985329,216.91,216.84,22.44597867]
[1731793673188,0.12549,216.9,216.84,22.44597867]
[1731793673389,4.6106,216.89,216.84,22.44597867]
[1731793673684,22.57146867,216.88,216.81,15.8341]
[1731793673857,22.44597867,216.85,216.78,22.44597867]
[1731793674056,0.12549,216.86,216.79,22.44597867]
[1731793674379,0.12549,216.87,216.8,22.44597867]
[1731793674581,4.6106,216.89,216.82,22.44597867]
[1731793674882,0.12549,216.88,216.82,22.44597867]
[1731793675081,0.12549,216.88,216.81,22.44597867]
[1731793675387,0.12549,216.86,216.81,22.44597867]
[1731793676589,0.12549,216.86,216.83,22.44597867]
[1731793677072,0.12549,216.86,216.81,22.44597867]
[1731793677983,4.6108,216.88,216.81,22.44597867]
[1731793678172,0.12549,216.87,216.81,22.44597867]
[1731793679162,4.73669,216.87,216.83,22.44597867]
[1731793682686,0.12549,216.87,216.83,22.44597867]
[1731793683012,4.70387462,216.91,216.85,22.44597867]
[1731793683184,4.70387462,216.91,216.87,22.44597867]
[1731793683387,0.09367462,216.91,216.87,22.44597867]
[1731793683569,4.70387462,216.91,216.87,22.44597867]
[1731793684381,0.09367462,216.91,216.87,22.44597867]
[1731793684582,4.82936462,216.91,216.84,22.44597867]
[1731793684895,27.27534329,216.91,216.84,22.44597867]
[1731793685067,27.27534329,216.91,216.82,22.44597867]
[1731793685500,23.776884,216.9,216.76,15.3505]
[1731793685793,0.12549,216.89,216.82,22.44597867]
[1731793686888,0.12549,216.89,216.81,14.02601523]
[1731793686889,4.6108,216.88,216.81,14.02601523]
[1731793687092,14.02601523,216.85,216.79,14.02601523]
[1731793687391,14.02601523,216.85,216.77,14.02601523]
[1731793687692,0.12549,216.84,216.77,14.02601523]
[1731793688287,4.6119,216.83,216.77,14.02601523]
[1731793688497,0.12549,216.82,216.77,14.02601523]
[1731793688699,0.12549,216.82,216.79,14.02601523]
[1731793688990,0.12549,216.89,216.81,14.02601523]
[1731793689202,0.12549,216.89,216.84,14.02601523]
[1731793690168,4.6108,216.88,216.84,14.02601523]
[1731793690366,0.12549,216.87,216.86,14.02601523]
[1731793690569,4.70387462,216.91,216.86,14.02601523]
[1731793691184,4.70387462,216.91,216.88,14.02601523]
[1731793691390,0.09367462,216.91,216.9,14.02601523]
[1731793695285,0.09367462,216.91,216.89,14.02601523]
[1731793697287,0.12549,216.9,216.87,14.02601523]
[1731793697791,0.09367462,216.91,216.89,14.02601523]
[1731793698880,11.5176,217.06,216.89,14.02601523]
[1731793699087,14.02601523,217.03,216.95,14.02601523]
[1731793699902,4.6078,217.02,216.95,14.02601523]
[1731793700080,14.15150523,217.01,216.93,14.02601523]
[1731793700405,23.776884,217.0,216.93,14.02601523]
[1731793700705,0.12549,216.99,216.93,14.02601523]
[1731793701575,4.6087,216.98,216.93,14.02601523]
[1731793701781,0.12549,216.97,216.93,14.02601523]
[1731793702703,0.12549,216.98,216.93,14.02601523]
[1731793703609,23.776884,217.0,216.93,14.02601523]
[1731793703786,0.12549,216.98,216.93,14.02601523]
[1731793705906,0.12549,216.96,216.93,14.02601523]
[1731793707109,0.12549,216.96,216.9,35.66381523]
[1731793707819,0.12549,216.96,216.9,29.09851523]
[1731793707988,0.12549,216.94,216.91,14.02601523]
[1731793708511,0.12549,216.92,216.86,14.02601523]
[1731793708803,14.02601523,216.93,216.86,14.02601523]
[1731793708804,23.902374,216.93,216.86,14.02601523]
[1731793709011,23.902374,216.93,216.87,14.02601523]
[1731793709388,0.12549,216.93,216.92,14.02601523]
[1731793709591,0.12549,216.94,216.91,14.02601523]
[1731793710212,4.73509,216.94,216.91,14.02601523]
[1731793712194,4.6087,216.98,216.93,14.02601523]
[1731793712509,19.30281523,217.05,216.96,14.02601523]
[1731793712922,14.02601523,217.03,216.96,14.02601523]
[1731793713501,0.12549,217.01,216.96,14.02601523]
[1731793715397,4.6078,217.02,216.96,14.02601523]
[1731793716514,4.6074,217.04,216.96,14.02601523]
[1731793716896,0.12549,217.03,216.96,14.02601523]
[1731793717727,4.6074,217.04,216.96,14.02601523]
[1731793717898,0.12549,217.03,216.96,14.02601523]
[1731793719010,4.6078,217.02,216.96,14.02601523]
[1731793719313,14.02601523,216.99,216.9,14.02601523]
[1731793719611,0.12549,216.98,216.92,14.02601523]
[1731793720192,14.02601523,217.01,216.92,14.02601523]
[1731793720397,0.12549,217.0,216.92,14.02601523]
[1731793721117,0.12549,216.98,216.92,14.02601523]
[1731793722012,23.902374,216.98,216.9,14.02601523]
[1731793723128,0.12549,216.96,216.9,14.02601523]
[1731793724206,23.776884,216.98,216.89,16.2265]
[1731793724207,0.12549,216.94,216.89,16.2265]
[1731793725520,0.12549,216.93,216.89,16.2265]
[1731793727016,4.73539,216.93,216.89,16.2265]
[1731793728816,14.02601523,216.97,216.89,16.2265]
[1731793728817,4.6091,216.96,216.9,14.02601523]
[1731793729826,4.6087,216.98,216.9,14.02601523]
[1731793730024,0.12549,216.97,216.9,14.02601523]
[1731793730916,4.6087,216.98,216.92,14.02601523]
[1731793731943,4.6082,217.0,216.92,14.02601523]
[1731793732530,0.12549,216.99,216.92,14.02601523]
[1731793734420,14.15150523,216.99,216.9,14.02601523]
[1731793734804,0.12549,216.99,216.92,8.9672143]
[1731793736027,0.12549,216.97,216.92,8.9672143]
[1731793737014,4.73449,216.97,216.9,8.9672143]
[1731793739618,8.9672143,216.96,216.85,6.3364]
[1731793739818,0.12549,216.93,216.87,8.9672143]
[1731793741329,4.6099,216.92,216.87,8.9672143]
[1731793741629,0.12549,216.91,216.87,8.9672143]
[1731793742041,8.9672143,216.9,216.83,8.9672143]
[1731793742222,0.12549,216.89,216.83,8.9672143]
[1731793743537,4.6108,216.88,216.83,8.9672143]
[1731793743715,0.12549,216.87,216.83,8.9672143]
[1731793744313,0.12549,216.87,216.81,8.9672143]
[1731793744708,0.12549,216.87,216.79,22.1614]
[1731793744925,0.12549,216.87,216.8,8.9672143]
[1731793745122,0.12549,216.87,216.79,22.1614]
[1731793745123,0.12549,216.87,216.81,8.9672143]
[1731793746539,4.6112,216.86,216.81,8.9672143]
[1731793746734,4.6112,216.86,216.77,8.9672143]
[1731793746735,8.9672143,216.85,216.77,8.9672143]
[1731793746908,0.12549,216.84,216.77,8.9672143]
[1731793748110,4.6119,216.83,216.77,8.9672143]
[1731793748635,0.12549,216.82,216.77,8.9672143]
[1731793749043,8.9672143,216.81,216.74,16.0252]
[1731793749329,9.0927043,216.8,216.74,16.0252]
[1731793749830,9.0927043,216.8,216.73,8.9672143]
[1731793750207,4.6127,216.79,216.73,8.9672143]
[1731793750413,0.12549,216.78,216.72,8.9672143]
[1731793751015,0.12549,216.78,216.73,8.9672143]
[1731793751838,0.12549,216.78,216.76,8.9672143]
[1731793752026,8.9672143,216.86,216.77,8.9672143]
[1731793752330,0.12549,216.85,216.78,8.9672143]
[1731793752826,0.12549,216.85,216.78,14.02876163]
[1731793753021,0.12549,216.83,216.78,14.02876163]
[1731793754131,4.6114,216.85,216.78,14.02876163]
[1731793754437,18.63916163,216.9,216.82,14.02876163]
[1731793755733,14.02876163,216.88,216.8,14.02876163]
[1731793755915,14.02876163,216.86,216.78,30.49096163]
[1731793756116,0.12549,216.85,216.78,30.49096163]
[1731793756730,0.12549,216.85,216.78,14.02876163]
[1731793757333,4.6119,216.83,216.76,14.02876163]
[1731793757548,0.12549,216.82,216.76,14.02876163]
[1731793757834,4.6119,216.83,216.76,14.02876163]
[1731793757835,14.02876163,216.84,216.76,14.02876163]
[1731793758053,42.54153563,216.9,216.81,14.02876163]
[1731793758639,14.02876163,216.88,216.81,14.02876163]
[1731793759141,0.12549,216.87,216.81,14.02876163]
[1731793759435,4.6112,216.86,216.81,14.02876163]
[1731793760035,4.6112,216.86,216.72,16.6622]
[1731793760036,0.12549,216.85,216.83,14.02876163]
[1731793760234,0.12549,216.87,216.83,14.02876163]
[1731793760414,0.12549,216.87,216.85,14.02876163]
[1731793764615,4.73659,216.87,216.83,14.02876163]
[1731793765336,4.73659,216.87,216.81,14.02876163]
[1731793765563,4.73659,216.87,216.79,14.02876163]
[1731793765564,0.12549,216.85,216.79,14.02876163]
[1731793767021,4.6116,216.84,216.79,14.02876163]
[1731793767519,0.12549,216.83,216.79,14.02876163]
[1731793768533,4.73689,216.85,216.79,14.02876163]
[1731793770924,4.73689,216.85,216.75,14.02876163]
[1731793770925,14.02876163,216.84,216.75,14.02876163]
[1731793771122,4.6114,216.85,216.75,14.02876163]
[1731793771123,0.12549,216.81,216.75,14.02876163]
[1731793771336,0.12549,216.81,216.72,16.4622]
[1731793771337,14.02876163,216.8,216.72,30.49096163]
[1731793771641,0.12549,216.79,216.72,30.49096163]
[1731793772247,4.6129,216.78,216.72,30.49096163]
[1731793772538,0.12549,216.77,216.72,14.02876163]
[1731793773121,4.6132,216.77,216.72,14.02876163]
[1731793773522,0.12549,216.76,216.72,14.02876163]
[1731793773739,0.12549,216.76,216.7,14.02876163]
[1731793774321,0.12549,216.76,216.68,14.02876163]
[1731793774525,14.15425163,216.76,216.68,14.02876163]
[1731793774825,9.11254572,216.76,216.68,8.98705572]
[1731793775035,0.12549,216.76,216.69,8.98705572]
[1731793775346,0.12549,216.74,216.69,8.98705572]
[1731793775728,0.12549,216.74,216.66,16.3752]
[1731793775923,0.12549,216.74,216.68,8.98705572]
[1731793776145,0.12549,216.74,216.66,16.3752]
[1731793776146,0.12549,216.74,216.66,25.36225572]
[1731793776443,9.11254572,216.74,216.66,25.36225572]
[1731793776658,0.12549,216.74,216.67,8.98705572]
[1731793777547,0.12549,216.72,216.67,8.98705572]
[1731793778223,4.6123,216.81,216.71,8.98705572]
[1731793778417,8.98705572,216.79,216.72,8.98705572]
[1731793778644,8.98705572,216.78,216.71,8.98705572]
[1731793778832,8.98705572,216.77,216.69,8.98705572]
[1731793779028,8.98705572,216.77,216.7,8.98705572]
[1731793779235,4.6131,216.77,216.71,8.98705572]
[1731793779428,0.12549,216.76,216.71,8.98705572]
[1731793779646,4.6131,216.77,216.71,8.98705572]
[1731793780231,4.6131,216.77,216.72,8.98705572]
[1731793780934,0.12549,216.76,216.72,8.98705572]
[1731793781526,4.6129,216.78,216.72,8.98705572]
[1731793781726,0.12549,216.77,216.71,8.98705572]
[1731793782825,8.98705572,216.79,216.71,8.98705572]
[1731793783038,0.12549,216.77,216.71,8.98705572]
[1731793785226,4.6129,216.78,216.71,8.98705572]
[1731793785432,0.12549,216.77,216.71,8.98705572]
[1731793785731,7.27450745,216.79,216.71,8.98705572]
[1731793786732,4.6129,216.78,216.71,8.98705572]
[1731793789339,8.98705572,216.77,216.69,8.98705572]
[1731793790458,23.776884,216.76,216.69,8.98705572]
[1731793790844,8.98705572,216.75,216.66,16.3752]
[1731793791149,8.98705572,216.71,216.57,16.4003]
[1731793791354,8.98705572,216.71,216.63,8.98705572]
[1731793791355,4.6146,216.7,216.63,8.98705572]
[1731793792149,4.6146,216.7,216.57,16.4003]
[1731793792150,4.6146,216.7,216.64,8.98705572]
[1731793794031,4.6146,216.7,216.62,8.98705572]
[1731793794726,8.98705572,216.69,216.62,8.98705572]
[1731793795443,23.776884,216.68,216.6,8.98705572]
[1731793795659,23.776884,216.66,216.6,8.98705572]
[1731793796544,4.6157,216.65,216.6,8.98705572]
[1731793799959,4.6157,216.65,216.57,16.4003]
[1731793800165,23.776884,216.64,216.57,16.4003]
[1731793800344,8.98705572,216.63,216.56,8.98705572]
[1731793800862,8.98705572,216.63,216.54,8.98705572]
[1731793800863,23.776884,216.62,216.54,8.98705572]
[1731793801658,4.6165,216.61,216.54,8.98705572]
[1731793801975,23.776884,216.6,216.52,15.9282]
[1731793802164,32.76393972,216.6,216.52,24.91525572]
[1731793802754,32.76393972,216.58,216.51,8.98705572]
[1731793803085,8.98705572,216.52,216.43,4.6204]
[1731793803363,23.776884,216.58,216.49,8.98705572]
[1731793803572,32.76393972,216.58,216.49,8.98705572]
[1731793803863,4.6174,216.57,216.49,8.98705572]
[1731793804070,23.776884,216.56,216.49,8.98705572]
[1731793804368,23.776884,216.56,216.5,8.98705572]
[1731793805169,8.98705572,216.56,216.45,4.6198]
[1731793805369,23.776884,216.54,216.47,8.98705572]
[1731793806783,4.6182,216.53,216.48,8.98705572]
[1731793807067,4.6182,216.53,216.5,8.98705572]
[1731793807655,16.161,216.57,216.5,8.98705572]
[1731793807863,23.776884,216.56,216.45,4.6199]
[1731793808059,23.776884,216.56,216.49,8.98705572]
[1731793808261,4.6174,216.57,216.53,8.98705572]
[1731793808569,4.6165,216.61,216.56,8.98705572]
[1731793808762,4.6165,216.61,216.52,15.4625]
[1731793808763,4.6163,216.63,216.58,8.98705572]
[1731793809350,21.9523,216.71,216.52,15.4625]
[1731793809588,4.6146,216.7,216.63,8.98705572]
[1731793809876,8.98705572,216.75,216.66,8.98705572]
[1731793810066,8.98705572,216.74,216.66,8.98705572]
[1731793810864,23.776884,216.73,216.66,14.04398993]
[1731793811859,4.6142,216.72,216.66,14.04398993]
[1731793812263,4.6138,216.74,216.68,14.04398993]
[1731793812467,4.6138,216.74,216.64,4.6158]
[1731793812677,4.6138,216.74,216.7,14.04398993]
[1731793813583,14.04398993,216.78,216.7,14.04398993]
[1731793813761,28.389984,216.77,216.7,14.04398993]
[1731793815063,42.43397393,216.77,216.69,14.04398993]
[1731793815590,4.6131,216.77,216.72,14.04398993]
[1731793815968,4.6131,216.77,216.7,14.04398993]
[1731793816481,4.6131,216.77,216.71,14.04398993]
[1731793819567,4.6131,216.77,216.73,14.04398993]
[1731793820662,18.32078993,216.81,216.73,14.04398993]
[1731793820864,28.389384,216.8,216.73,14.04398993]
[1731793823190,28.389784,216.78,216.64,4.6159]
[1731793823394,14.04398993,216.77,216.69,14.04398993]
[1731793823569,23.776884,216.75,216.69,14.04398993]
[1731793824269,23.776884,216.75,216.7,14.04398993]
[1731793824475,28.390184,216.76,216.7,14.04398993]
[1731793824664,4.6133,216.76,216.72,14.04398993]
[1731793825186,23.776884,216.79,216.74,14.04398993]
[1731793826069,4.6125,216.8,216.75,14.04398993]
[1731793826366,4.6125,216.8,216.64,23.876884]
[1731793826367,4.6125,216.8,216.74,14.04398993]
[1731793826993,4.6125,216.8,216.71,20.5382]
[1731793827286,4.6125,216.8,216.75,14.04398993]
[1731793827672,4.6125,216.8,216.74,14.04398993]
[1731793828792,4.6125,216.8,216.71,15.9238]
[1731793828793,4.6125,216.8,216.71,20.5381]
[1731793828971,4.6125,216.8,216.78,14.04398993]
[1731793829167,4.6125,216.8,216.79,14.04398993]
[1731793829597,4.6114,216.85,216.79,14.04398993]
[1731793830879,23.776884,216.84,216.79,14.04398993]
[1731793832381,14.04398993,216.84,216.73,4.6139]
[1731793832609,14.04398993,216.84,216.77,14.04398993]
[1731793834090,28.388784,216.83,216.75,14.04398993]
[1731793834293,14.04398993,216.82,216.75,14.04398993]
[1731793835298,53.96247393,216.83,216.75,14.04398993]
[1731793835604,14.04398993,216.82,216.75,14.04398993]
[1731793835973,14.04398993,216.79,216.72,14.04398993]
[1731793836674,14.04398993,216.79,216.71,29.96778993]
[1731793837095,14.04398993,216.75,216.67,14.04398993]
[1731793837595,14.04398993,216.74,216.67,14.04398993]
[1731793837977,4.614,216.73,216.66,14.04398993]
[1731793839601,4.614,216.73,216.68,14.04398993]
[1731793841086,4.614,216.73,216.67,14.04398993]
[1731793841304,14.04398993,216.74,216.67,14.04398993]
[1731793841475,14.04398993,216.74,216.66,14.04398993]
[1731793841678,14.04398993,216.71,216.65,15.9238]
[1731793842089,14.04398993,216.7,216.65,15.9238]
[1731793842393,14.04398993,216.72,216.65,15.9238]
[1731793842697,14.04398993,216.72,216.65,29.96778993]
[1731793843385,4.6144,216.71,216.65,29.96778993]
[1731793844181,18.65838993,216.71,216.65,15.9238]
[1731793844410,14.04398993,216.67,216.6,29.34698993]
[1731793844585,23.776884,216.69,216.6,15.303]
[1731793844586,14.04398993,216.66,216.6,15.303]
[1731793845299,4.6157,216.65,216.6,29.34698993]
[1731793845683,4.6146,216.7,216.64,14.04398993]
[1731793846094,18.65858993,216.7,216.63,14.04398993]
[1731793846289,18.65858993,216.7,216.6,19.9197]
[1731793846290,14.04398993,216.69,216.62,14.04398993]
[1731793846994,37.82087393,216.66,216.6,15.303]
[1731793847200,23.776884,216.68,216.57,14.04398993]
[1731793847201,14.04398993,216.64,216.57,14.04398993]
[1731793847510,4.6161,216.63,216.57,14.04398993]
[1731793848289,18.66008993,216.63,216.56,14.04398993]
[1731793848489,14.04398993,216.61,216.55,15.303]
[1731793848894,18.66008993,216.63,216.56,14.04398993]
[1731793849979,23.776884,216.63,216.56,14.04398993]
[1731793850302,14.04398993,216.66,216.59,14.04398993]
[1731793850486,23.776884,216.65,216.59,14.04398993]
[1731793851511,4.6159,216.64,216.59,14.04398993]
[1731793853016,4.6159,216.64,216.6,14.04398993]
[1731793853193,4.6159,216.64,216.61,14.04398993]
[1731793853388,4.6159,216.64,216.59,14.04398993]
[1731793855314,4.6159,216.64,216.57,14.04398993]
[1731793855888,4.6159,216.64,216.58,14.04398993]
[1731793857099,4.6163,216.62,216.58,14.04398993]
[1731793857313,4.6163,216.62,216.57,14.04398993]
[1731793858016,4.6163,216.62,216.56,14.04398993]
[1731793859920,4.6163,216.62,216.57,14.04398993]
[1731793860416,4.6168,216.6,216.57,14.04398993]
[1731793860593,4.6165,216.62,216.59,14.04398993]
[1731793860912,11.5356,216.72,216.61,14.04398993]
[1731793861117,14.04398993,216.7,216.62,14.04398993]
[1731793861312,14.04398993,216.7,216.55,19.9207]
[1731793861517,14.04398993,216.7,216.62,14.04398993]
[1731793861709,14.04398993,216.69,216.62,14.04398993]
[1731793862222,23.776884,216.67,216.62,14.04398993]
[1731793862818,32.76979349,216.67,216.59,8.99290949]
[1731793863027,8.99290949,216.63,216.55,15.303]
[1731793863208,23.776884,216.6,216.55,15.303]
[1731793863919,23.776884,216.61,216.55,24.29590949]
[1731793864225,4.6168,216.6,216.55,24.29590949]
[1731793864818,4.6168,216.6,216.55,29.36194172]
[1731793865014,4.6168,216.6,216.55,15.303]
[1731793866299,4.6168,216.6,216.54,14.05894172]
[1731793866914,23.776884,216.59,216.51,14.05894172]
[1731793867122,23.776884,216.59,216.52,14.05894172]
[1731793867300,23.776884,216.59,216.53,14.05894172]
[1731793868000,4.6155,216.66,216.58,14.05894172]
[1731793868318,14.05894172,216.71,216.64,14.05894172]
[1731793869023,4.6146,216.7,216.64,14.05894172]
[1731793869517,23.776884,216.69,216.64,14.05894172]
[1731793870111,28.391484,216.7,216.64,14.05894172]
[1731793870718,28.391484,216.7,216.66,14.05894172]
[1731793870915,4.6144,216.72,216.68,14.05894172]
[1731793871222,4.6133,216.76,216.68,14.05894172]
[1731793871601,14.05894172,216.75,216.68,14.05894172]
[1731793872116,4.6138,216.74,216.68,14.05894172]
[1731793872640,23.776884,216.73,216.68,14.05894172]
[1731793873001,23.776884,216.74,216.68,14.05894172]
[1731793873223,14.05894172,216.73,216.66,29.36184172]
[1731793873521,23.776884,216.7,216.64,14.05894172]
[1731793874598,23.776884,216.72,216.64,14.05894172]
[1731793874799,4.6144,216.71,216.67,14.05894172]
[1731793876015,23.776884,216.72,216.67,14.05894172]
[1731793876616,4.6141,216.73,216.69,14.05894172]
[1731793876825,4.6137,216.75,216.71,14.05894172]
[1731793877518,14.05894172,216.79,216.71,14.05894172]
[1731793877729,23.776884,216.76,216.71,14.05894172]
[1731793878036,14.05894172,216.81,216.73,14.05894172]
[1731793878330,4.6121,216.82,216.75,14.05894172]
[1731793879104,14.05894172,216.81,216.73,14.05894172]
[1731793879420,23.776884,216.8,216.73,14.05894172]
[1731793879622,14.05894172,216.81,216.73,14.05894172]
[1731793880027,14.05894172,216.83,216.75,14.05894172]
[1731793880914,23.776884,216.82,216.75,14.05894172]
[1731793881108,4.6123,216.81,216.75,14.05894172]
[1731793881310,4.6123,216.81,216.77,14.05894172]
[1731793883930,23.776884,216.8,216.73,14.05894172]
[1731793884514,23.776884,216.8,216.69,15.2219]
[1731793884515,23.776884,216.8,216.75,14.05894172]
[1731793885018,4.6127,216.79,216.75,14.05894172]
[1731793886326,4.6124,216.81,216.75,14.05894172]
[1731793889328,23.776884,216.8,216.73,14.05894172]
[1731793890235,23.776884,216.78,216.71,14.05894172]
[1731793890435,23.776884,216.76,216.7,14.05894172]
[1731793890817,23.776884,216.76,216.7,8.98555117]
[1731793891439,4.6136,216.75,216.71,8.98555117]
[1731793892236,4.6136,216.75,216.72,8.98555117]
[1731793892740,4.6127,216.79,216.74,8.98555117]
[1731793892951,23.776884,216.78,216.74,14.03425796]
[1731793893637,4.6127,216.79,216.74,14.03425796]
[1731793894939,11.5308,216.81,216.74,14.03425796]
[1731793895143,23.776884,216.8,216.74,14.03425796]
[1731793896945,4.6127,216.79,216.74,14.03425796]
[1731793897740,4.6127,216.79,216.72,14.03425796]
[1731793899138,23.776884,216.78,216.7,14.03425796]
[1731793899341,37.81114196,216.76,216.69,15.2219]
[1731793900126,23.776884,216.74,216.69,15.2219]
[1731793901640,4.614,216.73,216.69,15.2219]
[1731793904722,14.03425796,216.76,216.69,15.2219]
[1731793904723,23.776884,216.76,216.72,14.03425796]
[1731793904945,29.4655,216.89,216.75,14.03425796]
[1731793905146,14.03425796,216.85,216.77,14.03425796]
[1731793906331,23.776884,216.84,216.77,14.03425796]
[1731793906529,23.776884,216.82,216.73,4.6139]
[1731793906831,23.776884,216.82,216.77,14.03425796]
[1731793908051,28.388484,216.84,216.77,14.03425796]
[1731793910548,28.388484,216.84,216.7,14.03425796]
[1731793910549,4.6116,216.84,216.79,14.03425796]
[1731793911550,14.03425796,216.89,216.79,14.03425796]
[1731793911749,23.776884,216.87,216.79,14.03425796]
[1731793912544,23.776884,216.87,216.81,14.03425796]
[1731793912853,28.387684,216.88,216.81,14.03425796]
[1731793914224,28.387684,216.88,216.81,20.33475796]
[1731793914852,28.387684,216.88,216.83,14.03425796]
[1731793916452,28.387684,216.88,216.81,20.33475796]
[1731793918861,28.387684,216.88,216.82,8.97529757]
[1731793922840,23.776884,216.84,216.78,15.233]
[1731793923055,16.1379,216.88,216.83,8.97529757]
[1731793923056,4.6108,216.88,216.83,8.97529757]
[1731793923457,8.97529757,216.85,216.78,15.233]
[1731793923653,23.776884,216.84,216.78,15.233]
[1731793924058,23.776884,216.84,216.78,24.20829757]
[1731793924864,4.6119,216.83,216.78,24.20829757]
[1731793930695,4.6116,216.85,216.82,8.97529757]
[1731793931762,4.6108,216.88,216.82,8.97529757]
[1731793931942,23.776884,216.87,216.82,8.97529757]
[1731793932952,28.387684,216.88,216.82,8.97529757]
[1731793936870,23.776884,216.86,216.78,24.20829757]
[1731793937072,23.776884,216.84,216.78,24.20829757]
[1731793937759,23.776884,216.87,216.8,8.97529757]
[1731793937959,23.776884,216.87,216.82,8.97529757]
[1731793938160,23.776884,216.87,216.8,8.97529757]
[1731793938746,28.387684,216.88,216.8,8.97529757]
[1731793938949,28.387684,216.88,216.82,8.97529757]
[1731793942957,28.387684,216.88,216.78,19.8458]
[1731793943360,28.387684,216.88,216.81,8.97529757]
[1731793946456,4.6097,216.93,216.87,8.97529757]
[1731793947960,28.386184,216.95,216.87,8.97529757]
[1731793949055,8.97529757,216.9,216.86,15.8638]
[1731793949360,8.97529757,216.88,216.81,15.8638]
[1731793949958,13.58629757,216.88,216.81,15.8638]
[1731793950362,4.611,216.88,216.82,8.97529757]
[1731793955574,23.776884,216.91,216.82,8.97529757]
[1731793955773,13.58569757,216.9,216.82,8.97529757]
[1731793959870,23.776884,216.89,216.81,24.83909757]
[1731793960871,4.6108,216.88,216.81,24.83909757]
[1731793962558,13.58609757,216.88,216.81,24.83909757]
[1731793962759,13.58609757,216.88,216.81,15.8638]
[1731793963484,23.776884,216.93,216.84,8.97529757]
[1731793963674,23.776884,216.91,216.84,8.97529757]
[1731793964463,4.6104,216.9,216.84,8.97529757]
[1731793965502,4.6091,216.96,216.86,8.97529757]
[1731793965788,8.97529757,216.95,216.88,8.97529757]
[1731793966587,4.6095,216.94,216.88,8.97529757]
[1731793967884,4.6095,216.94,216.82,24.6121]
[1731793968088,8.97529757,216.93,216.85,8.97529757]
[1731793968288,4.6095,216.94,216.87,8.97529757]
[1731793968501,4.6095,216.94,216.82,24.6121]
[1731793968502,4.6095,216.94,216.89,8.97529757]
[1731793969579,7.15988695,217.03,216.89,8.97529757]
[1731793969777,8.97529757,216.99,216.91,8.97529757]
[1731793971091,4.6087,216.98,216.91,8.97529757]
[1731793971297,8.97529757,216.97,216.89,24.27059757]
[1731793971498,8.97529757,216.97,216.89,28.88119757]
[1731793971794,8.97529757,216.95,216.89,15.2953]
[1731793973596,4.6095,216.94,216.89,15.2953]
[1731793975189,8.97529757,216.93,216.85,4.6113]
[1731793975395,4.6099,216.92,216.85,4.6113]
[1731793975595,13.58519757,216.92,216.85,13.58659757]
[1731793980478,8.97529757,216.96,216.89,8.97529757]
[1731793981598,13.58439757,216.96,216.89,13.58569757]
[1731793983098,8.97529757,216.94,216.85,24.6114]
[1731793983402,8.97529757,216.94,216.86,8.97529757]
[1731793983885,4.6097,216.93,216.86,8.97529757]
[1731793984392,8.97529757,216.92,216.84,15.2953]
[1731793984579,8.97529757,216.9,216.84,15.2953]
[1731793984983,8.97529757,216.9,216.84,19.9069]
[1731793985180,8.97529757,216.9,216.84,15.2953]
[1731793985883,4.6106,216.89,216.84,15.2953]
[1731793986091,32.75218157,216.88,216.77,22.226]
[1731793986401,8.97529757,216.82,216.77,22.226]
[1731793987390,13.58739757,216.82,216.77,22.226]